fUSD/lending_fUSD_20250519
["ID","MTS","AMOUNT","RATE_DAILY","PERIOD"]
[361587404,1747625465346,-439.69,0.00013917,2]
[361587405,1747625465356,-926.78,0.00013917,2]
[361587406,1747625465365,-296.4,0.00013917,2]
[361587407,1747625465375,-400.0,0.00013917,2]
[361587408,1747625465385,-887.63,0.00013917,2]
[361587409,1747625465394,-400.0,0.00013917,2]
[361587410,1747625465405,-400.0,0.00013917,2]
[361587411,1747625465414,-668.87,0.00013917,2]
[361587412,1747625465423,-949.93,0.00013917,2]
[361587413,1747625465433,-763.32,0.00013917,2]
[361587414,1747625465442,-400.0,0.00013917,2]
[361587415,1747625465451,-400.0,0.00013917,2]
[361587416,1747625465461,-296.146871,0.00013917,2]
[361587417,1747625465471,-1513.25,0.00013917,2]
[361587418,1747625465480,-1044.861698,0.00013917,2]
[361587419,1747625465489,-400.0,0.00013917,2]
[361587420,1747625465498,-400.0,0.00013917,2]
[361587421,1747625465507,-324.148137,0.00013917,2]
[361587422,1747625465517,-1044.861698,0.00013917,2]
[361587423,1747625465527,-151.0,0.00013917,2]
[361587424,1747625465536,-400.0,0.00013917,2]
[361587425,1747625465545,-477.39,0.00013917,2]
[361587426,1747625465555,-324.148137,0.00013917,2]
[361587427,1747625465564,-886.19,0.00013917,2]
[361587428,1747625465575,-982.72,0.00013917,2]
[361587429,1747625465584,-400.0,0.00013917,2]
[361587430,1747625465594,-417.21,0.00013917,2]
[361587431,1747625465603,-534.45739075,0.00013917,2]
[361587432,1747625465613,-400.0,0.00013917,2]
[361587433,1747625465622,-400.0,0.00013917,2]
[361587434,1747625465632,-1135.67,0.00013917,2]
[361587435,1747625465642,-151.0,0.00013917,2]
[361587436,1747625465651,-400.0,0.00013917,2]
[361587437,1747625465661,-151.0,0.00013917,2]
[361587438,1747625465671,-640.64,0.00013917,2]
[361587439,1747625465680,-400.0,0.00013917,2]
[361587440,1747625465689,-400.0,0.00013917,2]
[361587441,1747625465699,-749.61,0.00013917,2]
[361587442,1747625465709,-627.02,0.00013917,2]
[361587443,1747625465719,-442.67,0.00013917,2]
[361587444,1747625465729,-1168.99,0.00013917,2]
[361587445,1747625465739,-801.48,0.00013917,2]
[361587446,1747625465749,-151.0,0.00013917,2]
[361587447,1747625465758,-1035.6,0.00013917,2]
[361587448,1747625465767,-400.0,0.00013917,2]
[361587449,1747625465778,-402.95,0.00013917,2]
[361587450,1747625465788,-400.0,0.00013917,2]
[361587451,1747625465797,-804.5,0.00013917,2]
[361587452,1747625465807,-400.0,0.00013917,2]
[361587453,1747625465817,-1230.38,0.00013917,2]
[361587454,1747625465826,-2400.388592,0.00013917,2]
[361587455,1747625465836,-400.0,0.00013917,2]
[361587456,1747625465846,-2400.388592,0.00013917,2]
[361587457,1747625465856,-421.19,0.00013917,2]
[361587458,1747625465869,-610.37,0.00013917,2]
[361587459,1747625465881,-400.0,0.00013917,2]
[361587460,1747625465891,-151.0,0.00013917,2]
[361587461,1747625465900,-853.94,0.00013917,2]
[361587462,1747625465910,-400.0,0.00013917,2]
[361587463,1747625465920,-500.86,0.00013917,2]
[361587464,1747625465929,-400.0,0.00013917,2]
[361587465,1747625465940,-700.74,0.00013917,2]
[361587466,1747625465949,-495.48,0.00013917,2]
[361587467,1747625465959,-400.32,0.00013917,2]
[361587468,1747625465968,-633.45,0.00013917,2]
[361587469,1747625465978,-1094.42,0.00013917,2]
[361587470,1747625465987,-1170.99,0.00013917,2]
[361587471,1747625465997,-151.0,0.00013917,2]
[361587472,1747625466007,-2132.32,0.00013917,2]
[361587473,1747625466016,-1402.82,0.00013917,2]
[361587474,1747625466026,-400.0,0.00013917,2]
[361587475,1747625466035,-400.0,0.00013917,2]
[361587476,1747625466045,-1001.87,0.00013917,2]
[361587477,1747625466054,-1827.52,0.00013917,2]
[361587478,1747625466064,-426.18,0.00013917,2]
[361587479,1747625466073,-6778.91,0.00013917,2]
[361587480,1747625466083,-552.08,0.00013917,2]
[361587481,1747625466092,-1690.07,0.00013917,2]
[361587482,1747625466101,-151.0,0.00013917,2]
[361587483,1747625466110,-914.26,0.00013917,2]
[361587484,1747625466119,-1504.32,0.00013917,2]
[361587485,1747625466130,-3937.5,0.00013917,2]
[361587486,1747625466140,-400.0,0.00013917,2]
[361587487,1747625466149,-8297.07,0.00013917,2]
[361587488,1747625466158,-352.808019,0.00013917,2]
[361587489,1747625466168,-442.69,0.00013917,2]
[361587490,1747625466177,-7597.01,0.00013917,2]
[361587491,1747625466186,-151.0,0.00013917,2]
[361587492,1747625466196,-4171.65,0.00013917,2]
[361587493,1747625466205,-597.47,0.00013917,2]
[361587494,1747625466214,-400.0,0.00013917,2]
[361587495,1747625466224,-884.35,0.00013917,2]
[361587496,1747625466233,-352.808019,0.00013917,2]
[361587497,1747625466243,-400.0,0.00013917,2]
[361587498,1747625466252,-1076.39,0.00013917,2]
[361587499,1747625466262,-151.0,0.00013917,2]
[361587500,1747625466271,-400.0,0.00013917,2]
[361587501,1747625466280,-2442.25,0.00013917,2]
[361587502,1747625466289,-499.97,0.00013917,2]
[361587503,1747625466298,-151.0,0.00013917,2]
[361587504,1747625466307,-400.0,0.00013917,2]
[361587505,1747625466317,-400.0,0.00013917,2]
[361587506,1747625466326,-2449.16,0.00013917,2]
[361587507,1747625466335,-151.0,0.00013917,2]
[361587508,1747625466346,-462.01,0.00013917,2]
[361587509,1747625466356,-416.1,0.00013917,2]
[361587510,1747625466365,-631.12,0.00013917,2]
[361587511,1747625466377,-549.48,0.00013917,2]
[361587512,1747625466386,-2574.34,0.00013917,2]
[361587513,1747625466395,-609.02,0.00013917,2]
[361587514,1747625466405,-844.3,0.00013917,2]
[361587515,1747625466414,-400.0,0.00013917,2]
[361587516,1747625466424,-400.0,0.00013917,2]
[361587517,1747625466433,-643.43,0.00013917,2]
[361587518,1747625466443,-1051.2,0.00013917,2]
[361587519,1747625466452,-400.0,0.00013917,2]
[361587520,1747625466461,-1235.7,0.00013917,2]
[361587521,1747625466470,-400.0,0.00013917,2]
[361587522,1747625466479,-698.81,0.00013917,2]
[361587523,1747625466489,-1285.25,0.00013917,2]
[361587524,1747625466498,-4426.48,0.00013917,2]
[361587525,1747625466508,-602.11,0.00013917,2]
[361587526,1747625466518,-1050.82,0.00013917,2]
[361587527,1747625466527,-502.11,0.00013917,2]
[361587528,1747625466536,-1380.78,0.00013917,2]
[361587529,1747625466545,-400.0,0.00013917,2]
[361587530,1747625466555,-656.26,0.00013917,2]
[361587531,1747625466565,-662.54,0.00013917,2]
[361587532,1747625466575,-565.11,0.00013917,2]
[361587533,1747625466584,-280.160433,0.00013917,2]
[361587534,1747625466595,-81923.32,0.00013917,2]
[361587535,1747625466606,-400.0,0.00013917,2]
[361587536,1747625466616,-400.0,0.00013917,2]
[361587537,1747625466630,-1791.84,0.00013917,2]
[361587538,1747625466639,-280.160433,0.00013917,2]
[361587539,1747625466649,-1109.76,0.00013917,2]
[361587540,1747625466659,-1241.54,0.00013917,2]
[361587541,1747625466669,-669.76,0.00013917,2]
[361587542,1747625466679,-959.78,0.00013917,2]
[361587543,1747625466690,-328.904495,0.00013917,2]
[361587544,1747625466700,-1270.86,0.00013917,2]
[361587545,1747625466710,-818.97,0.00013917,2]
[361587546,1747625466720,-3596.84,0.00013917,2]
[361587547,1747625466730,-400.0,0.00013917,2]
[361587548,1747625466739,-328.904495,0.00013917,2]
[361587549,1747625466750,-1121.37,0.00013917,2]
[361587550,1747625466760,-12333.66,0.00013917,2]
[361587551,1747625466770,-428.78,0.00013917,2]
[361587552,1747625466780,-400.0,0.00013917,2]
[361587553,1747625466790,-1005.37,0.00013917,2]
[361587554,1747625466801,-1507.87,0.00013917,2]
[361587555,1747625466810,-661.99,0.00013917,2]
[361587556,1747625466819,-7805.54,0.00013917,2]
[361587557,1747625466829,-1007.06,0.00013917,2]
[361587558,1747625466839,-1290.11,0.00013917,2]
[361587559,1747625466848,-684.56,0.00013917,2]
[361587560,1747625466858,-151.0,0.00013917,2]
[361587561,1747625466874,-818.98,0.00013917,2]
[361587562,1747625466884,-1009.81,0.00013917,2]
[361587563,1747625466893,-152.735441,0.00013917,2]
[361587564,1747625466903,-558.38,0.00013917,2]
[361587565,1747625466913,-2378.89,0.00013917,2]
[361587566,1747625466923,-826.92,0.00013917,2]
[361587567,1747625466933,-2599.9,0.00013917,2]
[361587568,1747625466943,-11447.28,0.00013917,2]
[361587569,1747625466954,-917.85,0.00013917,2]
[361587570,1747625466963,-722.05,0.00013917,2]
[361587571,1747625466973,-152.452711,0.00013917,2]
[361587572,1747625466982,-1166.53,0.00013917,2]
[361587573,1747625466991,-1983.2,0.00013917,2]
[361587574,1747625467000,-2449.01,0.00013917,2]
[361587575,1747625467011,-400.0,0.00013917,2]
[361587576,1747625467021,-778.3,0.00013917,2]
[361587577,1747625467031,-2652.13,0.00013917,2]
[361587578,1747625467040,-1174.93,0.00013917,2]
[361587579,1747625467049,-459.55,0.00013917,2]
[361587580,1747625467058,-413.47,0.00013917,2]
[361587581,1747625467067,-7477.09,0.00013917,2]
[361587582,1747625467076,-1729.51,0.00013917,2]
[361587583,1747625467085,-18764.63,0.00013917,2]
[361587584,1747625467094,-1198.87,0.00013917,2]
[361587585,1747625467104,-1660.48,0.00013917,2]
[361587586,1747625467113,-152.393508,0.00013917,2]
[361587587,1747625467124,-729.37,0.00013917,2]
[361587588,1747625467133,-990.27,0.00013917,2]
[361587589,1747625467142,-828.54,0.00013917,2]
[361587590,1747625467151,-3662.47,0.00013917,2]
[361587591,1747625467160,-1353.11,0.00013917,2]
[361587592,1747625467170,-2031.81,0.00013917,2]
[361587593,1747625467180,-649.86,0.00013917,2]
[361587594,1747625467190,-400.0,0.00013917,2]
[361587595,1747625467199,-400.0,0.00013917,2]
[361587596,1747625467211,-738.71,0.00013917,2]
[361587597,1747625467220,-242.10441203,0.00013917,2]
[361587598,1747625467229,-2548.16,0.00013917,2]
[361587599,1747625467238,-9312.45,0.00013917,2]
[361587600,1747625467247,-151.0,0.00013917,2]
[361587601,1747625467257,-1860.84,0.00013917,2]
[361587602,1747625467266,-924.46,0.00013917,2]
[361587603,1747625467275,-151.0,0.00013917,2]
[361587604,1747625467284,-1256.36,0.00013917,2]
[361587605,1747625467294,-400.0,0.00013917,2]
[361587606,1747625467303,-284.872032,0.00013917,2]
[361587607,1747625467312,-4669.21,0.00013917,2]
[361587608,1747625467321,-897.91,0.00013917,2]
[361587609,1747625467330,-400.0,0.00013917,2]
[361587610,1747625467339,-1219.61,0.00013917,2]
[361587611,1747625467348,-400.0,0.00013917,2]
[361587612,1747625467358,-284.872032,0.00013917,2]
[361587613,1747625467367,-442.59,0.00013917,2]
[361587614,1747625467377,-400.0,0.00013917,2]
[361587615,1747625467387,-535.36,0.00013917,2]
[361587616,1747625467396,-400.0,0.00013917,2]
[361587617,1747625467405,-1222.54,0.00013917,2]
[361587618,1747625467414,-535.58,0.00013917,2]
[361587619,1747625467423,-151.0,0.00013917,2]
[361587620,1747625467433,-1618.71,0.00013917,2]
[361587621,1747625467442,-807.76,0.00013917,2]
[361587622,1747625467451,-4857.43,0.00013917,2]
[361587623,1747625467460,-15863.33,0.00013917,2]
[361587624,1747625467469,-661.86,0.00013917,2]
[361587625,1747625467478,-459.81,0.00013917,2]
[361587626,1747625467487,-2379.49,0.00013917,2]
[361587627,1747625467497,-400.0,0.00013917,2]
[361587628,1747625467506,-675.57,0.00013917,2]
[361587629,1747625467514,-1375.46,0.00013917,2]
[361587630,1747625467523,-150.0,0.00013917,2]
[361587631,1747625467533,-3417.29,0.00013917,2]
[361587632,1747625467542,-150.0,0.00013917,2]
[361587633,1747625467551,-3534.52,0.00013917,2]
[361587634,1747625467560,-676.84,0.00013917,2]
[361587635,1747625467569,-1000.0,0.00013917,2]
[361587636,1747625467579,-1885.09,0.00013917,2]
[361587637,1747625467589,-868.49,0.00013917,2]
[361587638,1747625467600,-151.0,0.00013917,2]
[361587639,1747625467609,-400.0,0.00013917,2]
[361587640,1747625467620,-1265.41,0.00013917,2]
[361587641,1747625467630,-2715.9,0.00013917,2]
[361587642,1747625467639,-2864.75,0.00013917,2]
[361587643,1747625467648,-1947.14,0.00013917,2]
[361587644,1747625467658,-5764.49,0.00013917,2]
[361587645,1747625467667,-707.15,0.00013917,2]
[361587646,1747625467677,-400.0,0.00013917,2]
[361587647,1747625467685,-400.0,0.00013917,2]
[361587648,1747625467695,-1089.281752,0.00013917,2]
[361587649,1747625467704,-778.32,0.00013917,2]
[361587650,1747625467714,-400.0,0.00013917,2]
[361587651,1747625467723,-564.44,0.00013917,2]
[361587652,1747625467732,-400.0,0.00013917,2]
[361587653,1747625467741,-700.67,0.00013917,2]
[361587654,1747625467750,-1089.281752,0.00013917,2]
[361587655,1747625467759,-434.96,0.00013917,2]
[361587656,1747625467768,-2566.51,0.00013917,2]
[361587657,1747625467778,-492.59,0.00013917,2]
[361587658,1747625467787,-532.79,0.00013917,2]
[361587659,1747625467796,-582.19,0.00013917,2]
[361587660,1747625467805,-2077.26,0.00013917,2]
[361587661,1747625467815,-400.0,0.00013917,2]
[361587662,1747625467824,-841.76,0.00013917,2]
[361587663,1747625467832,-1207.22,0.00013917,2]
[361587664,1747625467842,-795.48,0.00013917,2]
[361587665,1747625467852,-781.94,0.00013917,2]
[361587666,1747625467868,-400.0,0.00013917,2]
[361587667,1747625467877,-605.41,0.00013917,2]
[361587668,1747625467887,-151.0,0.00013917,2]
[361587669,1747625467896,-400.0,0.00013917,2]
[361587670,1747625467907,-634.29,0.00013917,2]
[361587671,1747625467916,-447.63,0.00013917,2]
[361587672,1747625467925,-400.0,0.00013917,2]
[361587673,1747625467935,-151.0,0.00013917,2]
[361587674,1747625467946,-693.98,0.00013917,2]
[361587675,1747625467956,-1082.79,0.00013917,2]
[361587676,1747625467965,-8096.22,0.00013917,2]
[361587677,1747625467975,-200.0,0.00013917,2]
[361587678,1747625467984,-2687.49,0.00013917,2]
[361587679,1747625467993,-1447.6,0.00013917,2]
[361587680,1747625468002,-1046.89,0.00013917,2]
[361587681,1747625468011,-2655.55,0.00013917,2]
[361587682,1747625468020,-151.0,0.00013917,2]
[361587683,1747625468030,-1198.16,0.00013917,2]
[361587684,1747625468039,-2600.64,0.00013917,2]
[361587685,1747625468048,-400.0,0.00013917,2]
[361587686,1747625468057,-1267.95,0.00013917,2]
[361587687,1747625468066,-677.34,0.00013917,2]
[361587688,1747625468075,-577.73,0.00013917,2]
[361587689,1747625468084,-151.0,0.00013917,2]
[361587690,1747625468095,-13023.16,0.00013917,2]
[361587691,1747625468104,-2232.19,0.00013917,2]
[361587692,1747625468114,-459.87,0.00013917,2]
[361587693,1747625468123,-1031.79,0.00013917,2]
[361587694,1747625468132,-1656.87,0.00013917,2]
[361587695,1747625468142,-4043.49,0.00013917,2]
[361587696,1747625468151,-151.0,0.00013917,2]
[361587697,1747625468160,-401.26565202,0.00013917,2]
[361587698,1747625468170,-511.08,0.00013917,2]
[361587699,1747625468179,-400.0,0.00013917,2]
[361587700,1747625468189,-408.95,0.00013917,2]
[361587701,1747625468198,-528.83,0.00013917,2]
[361587702,1747625468207,-400.0,0.00013917,2]
[361587703,1747625468217,-400.0,0.00013917,2]
[361587704,1747625468228,-400.0,0.00013917,2]
[361587705,1747625468237,-400.0,0.00013917,2]
[361587706,1747625468246,-400.0,0.00013917,2]
[361587707,1747625468256,-401.81179241,0.00013917,2]
[361587708,1747625468266,-415.03456306,0.00013917,2]
[361587709,1747625468277,-2017.51,0.00013917,2]
[361587710,1747625468287,-1344.09,0.00013917,2]
[361587711,1747625468297,-11314.83,0.00013917,2]
[361587712,1747625468307,-1061.03,0.00013917,2]
[361587713,1747625468320,-1010.49,0.00013917,2]
[361587714,1747625468331,-1948.38,0.00013917,2]
[361587715,1747625468342,-1387.04,0.00013917,2]
[361587716,1747625468353,-479.4,0.00013917,2]
[361587717,1747625468362,-1073.15,0.00013917,2]
[361587718,1747625468372,-1366.83,0.00013917,2]
[361587719,1747625468381,-912.57,0.00013917,2]
[361587720,1747625468390,-400.0,0.00013917,2]
[361587721,1747625468399,-151.0,0.00013917,2]
[361587722,1747625468409,-167.95462307,0.00013918,2]
[361587723,1747625468418,-1058.21625796,0.00013923,2]
[361587724,1747625468428,-1076.0,0.00013924,2]
[361587725,1747625468437,-901.82,0.00013928,2]
[361587726,1747625468447,-574.0,0.00013929,2]
[361587727,1747625468456,-151.442785,0.00013929,2]
[361587728,1747625468465,-151.0,0.00013929,2]
[361587729,1747625468474,-151.0,0.00013929,2]
[361587730,1747625468484,-151.0,0.00013929,2]
[361587731,1747625468493,-153.051214,0.00013929,2]
[361587732,1747625468504,-151.0,0.00013929,2]
[361587733,1747625468514,-151.0,0.00013929,2]
[361587734,1747625468524,-151.0,0.00013929,2]
[361587735,1747625468534,-151.0,0.00013929,2]
[361587736,1747625468543,-151.0,0.00013929,2]
[361587737,1747625468554,-151.0,0.00013929,2]
[361587738,1747625468563,-151.0,0.00013929,2]
[361587739,1747625468572,-151.0,0.00013929,2]
[361587740,1747625468582,-151.0,0.00013929,2]
[361587741,1747625468591,-151.0,0.00013929,2]
[361587742,1747625468601,-151.0,0.00013929,2]
[361587743,1747625468610,-151.0,0.00013929,2]
[361587744,1747625468733,-151.0,0.00013929,2]
[361587745,1747625468754,-4933.8930536,0.00013934,2]
[361587746,1747625468763,-150.0,0.00013944,2]
[361587747,1747625468773,-150.0,0.00013948,2]
[361587748,1747625468783,-1187.0,0.0001395,2]
[361587749,1747625468793,-1187.0,0.0001395,2]
[361587750,1747625468803,-1187.0,0.0001395,2]
[361587751,1747625468812,-200.07203654,0.0001395,2]
[361587752,1747625468822,-789.83938359,0.0001395,2]
[361587753,1747625468831,-300.0,0.00013959,2]
[361587754,1747625468840,-4933.8930536,0.00013969,2]
[361587755,1747625468850,-150.0,0.00013969,2]
[361587756,1747625468859,-150.0,0.00013972,2]
[361587757,1747625468873,-700.0,0.00013972,2]
[361587758,1747625468883,-150.0,0.00013982,2]
[361587759,1747625468892,-1073.337775,0.00013989,2]
[361587760,1747625468903,-1640.0435583,0.00013989,2]
[361587761,1747625468912,-3633.8363417,0.00013989,2]
[361587762,1747625468922,-151.357546,0.00013989,2]
[361587763,1747625468931,-357.530347,0.00013989,2]
[361587764,1747625468941,-154.512649,0.00013989,2]
[361587765,1747625468951,-151.0,0.00013989,2]
[361587766,1747625468960,-151.0,0.00013989,2]
[361587767,1747625468970,-151.0,0.00013989,2]
[361587768,1747625468979,-151.0,0.00013989,2]
[361587769,1747625468989,-151.0,0.00013989,2]
[361587770,1747625468998,-151.0,0.00013989,2]
[361587771,1747625469008,-151.0,0.00013989,2]
[361587772,1747625469018,-151.0,0.00013989,2]
[361587773,1747625469028,-151.292011,0.00013989,2]
[361587774,1747625469037,-151.0,0.00013989,2]
[361587775,1747625469046,-151.0,0.00013989,2]
[361587776,1747625469056,-151.0,0.00013989,2]
[361587777,1747625469065,-901.82,0.00013989,2]
[361587778,1747625469075,-29591.7107493,0.00013989,2]
[361587779,1747625469084,-151.0,0.0001399,2]
[361587780,1747625469093,-151.0,0.0001399,2]
[361587781,1747625469103,-1229.4064147,0.0001399,2]
[361587782,1747625469111,-1385.4750543,0.0001399,2]
[361587783,1747625469121,-1541.543694,0.0001399,2]
[361587784,1747625469131,-151.0,0.0001399,2]
[361587785,1747625469140,-1393.3718378,0.0001399,2]
[361587786,1747625469149,-1146.7001173,0.0001399,2]
[361587787,1747625469159,-900.0283967,0.0001399,2]
[361587788,1747625469168,-3087.2870395,0.0001399,2]
[361587789,1747625469177,-2540.7377372,0.0001399,2]
[361587790,1747625469186,-1994.1884349,0.0001399,2]
[361587791,1747625469196,-151.0,0.0001399,2]
[361587792,1747625469205,-151.0,0.0001399,2]
[361587793,1747625469215,-154.093881,0.0001399,2]
[361587794,1747625469225,-153.380713,0.0001399,2]
[361587795,1747625469234,-151.0,0.0001399,2]
[361587796,1747625469243,-151.823348,0.0001399,2]
[361587797,1747625469252,-172.010036,0.0001399,2]
[361587798,1747625469262,-151.0,0.0001399,2]
[361587799,1747625469271,-151.0,0.0001399,2]
[361587800,1747625469281,-151.0,0.0001399,2]
[361587801,1747625469291,-151.0,0.0001399,2]
[361587802,1747625469302,-153.566223,0.0001399,2]
[361587803,1747625469312,-151.0,0.0001399,2]
[361587804,1747625469321,-2400.388592,0.0001399,2]
[361587805,1747625469331,-2400.388592,0.0001399,2]
[361587806,1747625469340,-272.271874,0.0001399,2]
[361587807,1747625469349,-151.0,0.0001399,2]
[361587808,1747625469359,-151.0,0.0001399,2]
[361587809,1747625469371,-151.0,0.0001399,2]
[361587810,1747625469381,-151.0,0.0001399,2]
[361587811,1747625469391,-280.160433,0.0001399,2]
[361587812,1747625469400,-280.160433,0.0001399,2]
[361587813,1747625469409,-151.911524,0.0001399,2]
[361587814,1747625469418,-151.0,0.0001399,2]
[361587815,1747625469428,-151.0,0.0001399,2]
[361587816,1747625469437,-284.872032,0.0001399,2]
[361587817,1747625469446,-284.872032,0.0001399,2]
[361587818,1747625469455,-151.0,0.0001399,2]
[361587819,1747625469465,-151.0,0.0001399,2]
[361587820,1747625469474,-1089.281752,0.0001399,2]
[361587821,1747625469483,-1089.281752,0.0001399,2]
[361587822,1747625469492,-151.0,0.0001399,2]
[361587823,1747625469501,-152.594986,0.0001399,2]
[361587824,1747625469511,-151.0,0.0001399,2]
[361587825,1747625469520,-151.0,0.0001399,2]
[361587826,1747625469529,-151.0,0.0001399,2]
[361587827,1747625469539,-38816.7422854,0.0001399,2]
[361587828,1747625469549,-48041.7738215,0.0001399,2]
[361587829,1747625469558,-57266.8053577,0.0001399,2]
[361587830,1747625469568,-151.0,0.0001399,2]
[361587831,1747625469577,-901.82,0.00013998,2]
[361587832,1747625469587,-901.82,0.00013998,2]
[361587833,1747625469597,-901.82,0.00013998,2]
[361587834,1747625469607,-901.82,0.00013998,2]
[361587835,1747625469617,-171.1363192,0.00013999,2]
[361587836,1747625469628,-152.109962,0.00013999,2]
[361587837,1747625469637,-151.0,0.00013999,2]
[361587838,1747625469647,-151.0,0.00013999,2]
[361587839,1747625469657,-357.530347,0.00013999,2]
[361587840,1747625469666,-151.0,0.00013999,2]
[361587841,1747625469675,-151.0,0.00013999,2]
[361587842,1747625469685,-178.754913,0.00013999,2]
[361587843,1747625469694,-151.0,0.00013999,2]
[361587844,1747625469704,-151.0,0.00013999,2]
[361587845,1747625469714,-151.0,0.00013999,2]
[361587846,1747625469724,-157.451976,0.00013999,2]
[361587847,1747625469734,-151.0,0.00013999,2]
[361587848,1747625469743,-151.0,0.00013999,2]
[361587849,1747625469753,-151.0,0.00013999,2]
[361587850,1747625469763,-151.0,0.00013999,2]
[361587851,1747625469772,-151.0,0.00013999,2]
[361587852,1747625469782,-151.0,0.00013999,2]
[361587853,1747625469792,-286.983495,0.00013999,2]
[361587854,1747625469803,-151.0,0.00013999,2]
[361587855,1747625469812,-152.65723,0.00013999,2]
[361587856,1747625469822,-151.0,0.00013999,2]
[361587857,1747625469833,-151.0,0.00013999,2]
[361587858,1747625469842,-151.0,0.00013999,2]
[361587859,1747625469853,-151.0,0.00013999,2]
[361587860,1747625469865,-151.0,0.00013999,2]
[361587861,1747625469877,-151.0,0.00013999,2]
[361587862,1747625469886,-151.0,0.00013999,2]
[361587863,1747625469896,-151.895612,0.00013999,2]
[361587864,1747625469906,-181.705694,0.00013999,2]
[361587865,1747625469916,-181.705694,0.00013999,2]
[361587866,1747625469928,-206.842652,0.00013999,2]
[361587867,1747625469941,-151.0,0.00013999,2]
[361587868,1747625469953,-298.825689,0.00013999,2]
[361587869,1747625469965,-151.0,0.00013999,2]
[361587870,1747625469976,-2400.388592,0.00013999,2]
[361587871,1747625469986,-2400.388592,0.00013999,2]
[361587872,1747625469997,-901.82,0.00013999,2]
[361587873,1747625470010,-901.82,0.00013999,2]
[361587874,1747625470022,-901.82,0.00013999,2]
[361587875,1747625470033,-901.82,0.00013999,2]
[361587876,1747625470044,-901.82,0.00013999,2]
[361587877,1747625470054,-901.82,0.00013999,2]
[361587878,1747625470066,-901.82,0.00013999,2]
[361587879,1747625470077,-901.82,0.00013999,2]
[361587880,1747625470087,-901.82,0.00013999,2]
[361587881,1747625470097,-901.97146444,0.00013999,2]
[361587882,1747625470106,-151.0,0.00013999,2]
[361587883,1747625470116,-151.0,0.00013999,2]
[361587884,1747625470127,-352.808019,0.00013999,2]
[361587885,1747625470136,-352.808019,0.00013999,2]
[361587886,1747625470146,-185.826327,0.00013999,2]
[361587887,1747625470156,-151.0,0.00013999,2]
[361587888,1747625470166,-29951.59724743,0.00013999,2]
[361587889,1747625470177,-280.160433,0.00013999,2]
[361587890,1747625470186,-280.160433,0.00013999,2]
[361587891,1747625470195,-151.0,0.00013999,2]
[361587892,1747625470205,-151.0,0.00013999,2]
[361587893,1747625470214,-203.95184858,0.00013999,2]
[361587894,1747625470224,-369.4858087,0.00013999,2]
[361587895,1747625470233,-42515.82696138,0.00014,2]
[361587896,1747625470677,-1000.0,0.00014,2]
[361587897,1747625470689,-6207.76257819,0.00014,2]
[361587898,1747625470701,-5809.78883259,0.00014,2]
[361587899,1747625470718,-1247.22,0.00013698,2]
[361587900,1747625470728,-601.88000001,0.00014,2]
[361587901,1747625471092,-658.63,0.00013917,2]
[361587902,1747625471102,-565.0381103,0.00014,2]
[361587903,1747625471113,-507.91,0.00014,2]